fUST/lending_fUST_20240226
["ID","MTS","AMOUNT","RATE_DAILY","PERIOD"]
[315171185,1708900243507,-500.0,0.00019452,2]
[315171187,1708900243516,-583.56,0.00019452,2]
[315171189,1708900243525,-500.0,0.00019452,2]
[315171191,1708900243534,-500.0,0.00019452,2]
[315171193,1708900243543,-500.0,0.00019452,2]
[315171195,1708900243553,-500.0,0.00019452,2]
[315171197,1708900243562,-500.0,0.00019452,2]
[315171199,1708900243571,-500.0,0.00019452,2]
[315171201,1708900243580,-500.0,0.00019452,2]
[315171203,1708900243589,-500.0,0.00019452,2]
[315171205,1708900243598,-500.0,0.00019452,2]
[315171207,1708900243607,-500.0,0.00019452,2]
[315171209,1708900243616,-500.0,0.00019452,2]
[315171211,1708900243625,-500.0,0.00019452,2]
[315171213,1708900243634,-500.0,0.00019452,2]
[315171215,1708900243643,-500.0,0.00019452,2]
[315171217,1708900243651,-502.05058495,0.00019452,2]
[315171219,1708900243661,-500.0,0.00019452,2]
[315171222,1708900243670,-500.0,0.00019452,2]
[315171224,1708900243679,-500.0,0.00019452,2]
[315171226,1708900243688,-2959.44,0.00019452,2]
[315171228,1708900243697,-500.0,0.00019452,2]
[315171230,1708900243706,-500.0,0.00019452,2]
[315171231,1708900243715,-1340.52,0.00019452,2]
[315171233,1708900243724,-500.0,0.00019452,2]
[315171235,1708900243733,-500.53936311,0.00019452,2]
[315171237,1708900243743,-500.0,0.00019452,2]
[315171239,1708900243752,-500.0,0.00019452,2]
[315171241,1708900243761,-1206.28,0.00019452,2]
[315171243,1708900243769,-589.92596995,0.00019452,2]
[315171245,1708900243779,-500.0,0.00019452,2]
[315171247,1708900243787,-500.0,0.00019452,2]
[315171249,1708900243797,-500.0,0.00019452,2]
[315171251,1708900243806,-266.57275156,0.00019452,2]
[315171253,1708900243815,-500.0,0.00019452,2]
[315171255,1708900243823,-500.0,0.00019452,2]
[315171257,1708900243832,-500.0,0.00019452,2]
[315171259,1708900243841,-151.0,0.00019452,2]
[315171262,1708900243850,-500.0,0.00019452,2]
[315171264,1708900243858,-500.0,0.00019452,2]
[315171266,1708900243868,-501.34536257,0.00019452,2]
[315171268,1708900243876,-602.69,0.00019452,2]
[315171270,1708900243886,-645.36,0.00019452,2]
[315171272,1708900243895,-521.32310126,0.00019452,2]
[315171274,1708900243904,-501.1824687,0.00019452,2]
[315171276,1708900243913,-500.0,0.00019452,2]
[315171278,1708900243922,-500.0,0.00019452,2]
[315171280,1708900243932,-417.12961598,0.00019452,2]
[315171282,1708900243941,-500.0,0.00019452,2]
[315171284,1708900243950,-500.0,0.00019452,2]
[315171286,1708900243959,-500.0,0.00019452,2]
[315171288,1708900243968,-1316.89,0.00019452,2]
[315171290,1708900243977,-281.21571745,0.00019452,2]
[315171292,1708900243986,-500.0,0.00019452,2]
[315171294,1708900243995,-500.0,0.00019452,2]
[315171296,1708900244004,-500.0,0.00019452,2]
[315171298,1708900244013,-500.0,0.00019452,2]
[315171300,1708900244022,-614.33144161,0.00019452,2]
[315171302,1708900244031,-500.0,0.00019452,2]
[315171304,1708900244040,-500.0,0.00019452,2]
[315171306,1708900244049,-1000.0,0.00019452,2]
[315171308,1708900244057,-502.09679312,0.00019452,2]
[315171310,1708900244066,-500.0,0.00019452,2]
[315171312,1708900244075,-500.0,0.00019452,2]
[315171314,1708900244084,-500.0,0.00019452,2]
[315171316,1708900244093,-527.48064303,0.00019452,2]
[315171318,1708900244102,-502.54439093,0.00019452,2]
[315171319,1708900244111,-502.61238656,0.00019452,2]
[315171321,1708900244121,-500.0,0.00019452,2]
[315171323,1708900244130,-500.4285355,0.00019452,2]
[315171325,1708900244139,-500.0,0.00019452,2]
[315171328,1708900244149,-500.0,0.00019452,2]
[315171329,1708900244158,-500.0,0.00019452,2]
[315171331,1708900244167,-500.0,0.00019452,2]
[315171333,1708900244176,-500.0,0.00019452,2]
[315171335,1708900244187,-500.0,0.00019452,2]
[315171337,1708900244196,-500.0,0.00019452,2]
[315171339,1708900244205,-2007.98,0.00019452,2]
[315171341,1708900244214,-500.0,0.00019452,2]
[315171343,1708900244223,-500.50799428,0.00019452,2]
[315171345,1708900244233,-500.0,0.00019452,2]
[315171347,1708900244243,-500.0,0.00019452,2]
[315171349,1708900244252,-414.64097226,0.00019452,2]
[315171351,1708900244261,-500.0,0.00019452,2]
[315171353,1708900244270,-500.0,0.00019452,2]
[315171355,1708900244279,-500.0,0.00019452,2]
[315171357,1708900244288,-579.29146287,0.00019452,2]
[315171359,1708900244297,-500.0,0.00019452,2]
[315171361,1708900244306,-500.0,0.00019452,2]
[315171363,1708900244316,-500.0,0.00019452,2]
[315171364,1708900244329,-500.0,0.00019452,2]
[315171365,1708900244426,-500.44554136,0.00019452,2]
[315171366,1708900244435,-631.02090704,0.00019452,2]
[315171367,1708900244444,-500.0,0.00019452,2]
[315171368,1708900244454,-500.0,0.00019452,2]
[315171369,1708900244463,-1570.5,0.00019452,2]
[315171370,1708900244473,-500.0,0.00019452,2]
[315171371,1708900244482,-500.0,0.00019452,2]
[315171372,1708900244492,-604.0350439,0.00019452,2]
[315171373,1708900244501,-500.0,0.00019452,2]
[315171374,1708900244510,-500.0,0.00019452,2]
[315171375,1708900244519,-230.13455929,0.00019452,2]
[315171377,1708900244528,-500.0,0.00019452,2]
[315171379,1708900244536,-500.0,0.00019452,2]
[315171381,1708900244545,-500.0,0.00019452,2]
[315171382,1708900244554,-500.0,0.00019452,2]
[315171385,1708900244563,-500.0,0.00019452,2]
[315171386,1708900244572,-500.0,0.00019452,2]
[315171388,1708900244581,-500.0,0.00019452,2]
[315171390,1708900244591,-500.0,0.00019452,2]
[315171393,1708900244603,-417.98180468,0.00019452,2]
[315171395,1708900244612,-500.0,0.00019452,2]
[315171396,1708900244621,-500.0,0.00019452,2]
[315171398,1708900244630,-500.0,0.00019452,2]
[315171400,1708900244639,-500.0,0.00019452,2]
[315171401,1708900244648,-500.0,0.00019452,2]
[315171402,1708900244657,-500.0,0.00019452,2]
[315171403,1708900244667,-500.0,0.00019452,2]
[315171404,1708900244676,-501.58719157,0.00019452,2]
[315171405,1708900244685,-500.0,0.00019452,2]
[315171406,1708900244693,-500.0,0.00019452,2]
[315171408,1708900244703,-500.0,0.00019452,2]
[315171410,1708900244711,-831.59,0.00019452,2]
[315171412,1708900244720,-312.19112471,0.00019452,2]
[315171414,1708900244729,-500.0,0.00019452,2]
[315171416,1708900244739,-1410.55,0.00019452,2]
[315171418,1708900244747,-500.0,0.00019452,2]
[315171420,1708900244756,-640.14797302,0.00019452,2]
[315171422,1708900244765,-500.0,0.00019452,2]
[315171424,1708900244774,-500.0,0.00019452,2]
[315171426,1708900244783,-500.0,0.00019452,2]
[315171428,1708900244792,-500.0,0.00019452,2]
[315171430,1708900244801,-500.0,0.00019452,2]
[315171432,1708900244811,-733.08,0.00019452,2]
[315171434,1708900244820,-500.88715214,0.00019452,2]
[315171436,1708900244829,-500.0,0.00019452,2]
[315171438,1708900244838,-544.51786006,0.00019452,2]
[315171440,1708900244847,-500.0,0.00019452,2]
[315171442,1708900244856,-500.39052972,0.00019452,2]
[315171444,1708900244864,-500.0,0.00019452,2]
[315171446,1708900244873,-500.0,0.00019452,2]
[315171448,1708900244882,-1690.29,0.00019452,2]
[315171450,1708900244891,-779.2,0.00019452,2]
[315171452,1708900244900,-500.0,0.00019452,2]
[315171454,1708900244909,-616.61,0.00019452,2]
[315171456,1708900244918,-500.0,0.00019452,2]
[315171458,1708900244927,-500.0,0.00019452,2]
[315171460,1708900244936,-500.0,0.00019452,2]
[315171462,1708900244945,-500.0,0.00019452,2]
[315171464,1708900244953,-500.0,0.00019452,2]
[315171466,1708900244962,-500.0,0.00019452,2]
[315171468,1708900244971,-500.0,0.00019452,2]
[315171470,1708900244980,-2460.03,0.00019452,2]
[315171472,1708900244989,-500.51240709,0.00019452,2]
[315171474,1708900244998,-500.0,0.00019452,2]
[315171476,1708900245007,-500.0,0.00019452,2]
[315171478,1708900245017,-500.0,0.00019452,2]
[315171480,1708900245026,-1782.88,0.00019452,2]
[315171482,1708900245035,-500.0,0.00019452,2]
[315171484,1708900245043,-10756.65,0.00019452,2]
[315171486,1708900245052,-500.0,0.00019452,2]
[315171488,1708900245061,-500.0,0.00019452,2]
[315171490,1708900245070,-500.0,0.00019452,2]
[315171492,1708900245079,-500.0,0.00019452,2]
[315171494,1708900245087,-500.0,0.00019452,2]
[315171496,1708900245097,-500.0,0.00019452,2]
[315171498,1708900245106,-2490.46,0.00019452,2]
[315171500,1708900245116,-500.0,0.00019452,2]
[315171502,1708900245126,-500.50541851,0.00019452,2]
[315171504,1708900245136,-3832.41,0.00019452,2]
[315171506,1708900245145,-500.0,0.00019452,2]
[315171508,1708900245154,-500.0,0.00019452,2]
[315171510,1708900245163,-301.65407508,0.00019452,2]
[315171512,1708900245172,-500.0,0.00019452,2]
[315171514,1708900245181,-500.0,0.00019452,2]
[315171515,1708900245190,-485.95883318,0.00019452,2]
[315171517,1708900245199,-500.0,0.00019452,2]
[315171520,1708900245208,-500.0,0.00019452,2]
[315171522,1708900245219,-500.0,0.00019452,2]
[315171524,1708900245228,-500.0,0.00019452,2]
[315171525,1708900245237,-501.21839643,0.00019452,2]
[315171528,1708900245247,-500.0,0.00019452,2]
[315171530,1708900245257,-1000.0,0.00019452,2]
[315171532,1708900245266,-500.0,0.00019452,2]
[315171534,1708900245274,-19742.94,0.00019452,2]
[315171536,1708900245283,-500.42437072,0.00019452,2]
[315171538,1708900245292,-482.96851465,0.00019452,2]
[315171540,1708900245301,-500.0,0.00019452,2]
[315171542,1708900245311,-500.0,0.00019452,2]
[315171544,1708900245322,-500.0,0.00019452,2]
[315171546,1708900245331,-1860.4,0.00019452,2]
[315171547,1708900245340,-500.0,0.00019452,2]
[315171550,1708900245350,-500.0,0.00019452,2]
[315171553,1708900245360,-1962.71,0.00019452,2]
[315171555,1708900245368,-500.0,0.00019452,2]
[315171557,1708900245377,-500.0,0.00019452,2]
[315171559,1708900245386,-500.0,0.00019452,2]
[315171561,1708900245395,-500.0,0.00019452,2]
[315171562,1708900245406,-500.0,0.00019452,2]
[315171564,1708900245417,-500.0,0.00019452,2]
[315171566,1708900245426,-500.0,0.00019452,2]
[315171568,1708900245435,-500.0,0.00019452,2]
[315171571,1708900245444,-1541.77,0.00019452,2]
[315171573,1708900245454,-500.0,0.00019452,2]
[315171575,1708900245463,-500.0,0.00019452,2]
[315171576,1708900245471,-500.0,0.00019452,2]
[315171578,1708900245481,-504.30900144,0.00019452,2]
[315171580,1708900245490,-630.4741948,0.00019452,2]
[315171584,1708900245500,-7249.19,0.00019452,2]
[315171586,1708900245510,-500.0,0.00019452,2]
[315171590,1708900245519,-666.66,0.00019452,2]
[315171594,1708900245528,-500.0,0.00019452,2]
[315171597,1708900245537,-500.0,0.00019452,2]
[315171601,1708900245546,-10303.73,0.00019452,2]
[315171606,1708900245556,-500.0,0.00019452,2]
[315171610,1708900245565,-500.0,0.00019452,2]
[315171613,1708900245574,-2258.72,0.00019452,2]
[315171616,1708900245583,-500.0,0.00019452,2]
[315171619,1708900245593,-500.0,0.00019452,2]
[315171621,1708900245602,-2608.66,0.00019452,2]
[315171623,1708900245611,-500.0,0.00019452,2]
[315171625,1708900245621,-500.0,0.00019452,2]
[315171627,1708900245630,-500.6752788,0.00019452,2]
[315171629,1708900245639,-500.0,0.00019452,2]
[315171631,1708900245648,-500.0,0.00019452,2]
[315171632,1708900245657,-500.0,0.00019452,2]
[315171635,1708900245667,-265.9437371,0.00019452,2]
[315171637,1708900245677,-4074.68,0.00019452,2]
[315171639,1708900245686,-19864.9,0.00019452,2]
[315171640,1708900245695,-500.0,0.00019452,2]
[315171642,1708900245704,-500.0,0.00019452,2]
[315171644,1708900245713,-1067.04,0.00019452,2]
[315171646,1708900245722,-2674.62,0.00019452,2]
[315171649,1708900245732,-500.0,0.00019452,2]
[315171651,1708900245741,-500.0,0.00019452,2]
[315171652,1708900245750,-500.0,0.00019452,2]
[315171655,1708900245759,-500.0,0.00019452,2]
[315171657,1708900245768,-1274.67,0.00019452,2]
[315171659,1708900245777,-656.74,0.00019452,2]
[315171661,1708900245786,-500.0,0.00019452,2]
[315171662,1708900245794,-631.88316955,0.00019452,2]
[315171665,1708900245804,-500.0,0.00019452,2]
[315171667,1708900245813,-500.0,0.00019452,2]
[315171669,1708900245822,-500.0,0.00019452,2]
[315171671,1708900245832,-500.0,0.00019452,2]
[315171673,1708900245841,-500.0,0.00019452,2]
[315171675,1708900245850,-2224.49,0.00019452,2]
[315171676,1708900245858,-500.0,0.00019452,2]
[315171679,1708900245868,-500.0,0.00019452,2]
[315171680,1708900245877,-500.0,0.00019452,2]
[315171682,1708900245887,-500.0,0.00019452,2]
[315171685,1708900245896,-182.51135653,0.00019471,2]
[315171687,1708900245905,-7321.61669943,0.00019474,2]
[315171689,1708900245915,-7321.61669943,0.00019479,2]
[315171691,1708900245924,-182.51135653,0.0001948,2]
[315171693,1708900245933,-7321.61669943,0.00019489,2]
[315171695,1708900245942,-182.51135653,0.00019499,2]
[315171697,1708900245951,-153.0,0.000195,2]
[315171699,1708900245960,-153.0,0.000195,2]
[315171701,1708900245968,-200.5569553,0.000195,2]
[315171703,1708900245977,-153.0,0.000195,2]
[315171704,1708900245986,-153.0,0.000195,2]
[315171706,1708900245995,-153.0,0.000195,2]
[315171709,1708900246004,-153.0,0.000195,2]
[315171711,1708900246013,-2961.64612266,0.00019539,2]
[315171713,1708900246023,-151.60364393,0.00019596,2]
[315171715,1708900246031,-153.0,0.000196,2]
[315171717,1708900246040,-153.0,0.000196,2]
[315171719,1708900246049,-153.0,0.000196,2]
[315171720,1708900246058,-200.5569553,0.000196,2]
[315171723,1708900246090,-153.0,0.000196,2]
[315171724,1708900246099,-153.0,0.000196,2]
[315171727,1708900246108,-153.0,0.000196,2]
[315171729,1708900246117,-200.5569553,0.000196,2]
[315171731,1708900246127,-153.0,0.000196,2]
[315171733,1708900246135,-153.0,0.000196,2]
[315171735,1708900246144,-153.0,0.000196,2]
[315171737,1708900246153,-153.0,0.000196,2]
[315171739,1708900246162,-153.0,0.000196,2]
[315171741,1708900246171,-200.5569553,0.000196,2]
[315171743,1708900246181,-385.7549351,0.000196,2]
[315171745,1708900246189,-153.0,0.000196,2]
[315171747,1708900246198,-226.9535109,0.000196,2]
[315171749,1708900246207,-301.9614026,0.000196,2]
[315171751,1708900246216,-153.0,0.000196,2]
[315171753,1708900246225,-153.0,0.000196,2]
[315171755,1708900246235,-153.0,0.000196,2]
[315171757,1708900246244,-153.0,0.000196,2]
[315171759,1708900246253,-199.676118,0.000196,2]
[315171761,1708900246263,-153.0,0.000196,2]
[315171763,1708900246272,-153.0,0.000196,2]
[315171765,1708900246281,-153.0,0.000196,2]
[315171767,1708900246290,-200.5569553,0.000196,2]
[315171769,1708900246299,-153.0,0.000196,2]
[315171771,1708900246308,-153.0,0.000196,2]
[315171773,1708900246320,-166.666666,0.00019627,2]
[315171775,1708900246330,-2961.64612266,0.00019629,2]
[315171777,1708900246339,-5523.32487849,0.000197,2]
[315171779,1708900246349,-5523.32487849,0.000197,2]
[315171781,1708900246359,-5523.32487849,0.000197,2]
[315171783,1708900246367,-153.0,0.000197,2]
[315171785,1708900246376,-200.5569553,0.000197,2]
[315171787,1708900246385,-200.5569553,0.000197,2]
[315171789,1708900246395,-153.0,0.000197,2]
[315171791,1708900246404,-200.5569553,0.000197,2]
[315171793,1708900246413,-200.5569553,0.000197,2]
[315171795,1708900246422,-153.0,0.000197,2]
[315171797,1708900246431,-200.5569553,0.000197,2]
[315171799,1708900246440,-153.0,0.000197,2]
[315171801,1708900246449,-153.0,0.000197,2]
[315171803,1708900246458,-153.0,0.000197,2]
[315171805,1708900246467,-153.0,0.000197,2]
[315171807,1708900246476,-306.0,0.000197,2]
[315171809,1708900246487,-153.0,0.000197,2]
[315171820,1708900246496,-2961.64612266,0.00019719,2]
[315171822,1708900246587,-500.0,0.00019726,2]
[315171824,1708900246596,-155.87924966,0.00019726,2]
[315171826,1708900246605,-500.0,0.00019726,2]
[315171828,1708900246613,-500.0,0.00019726,2]
[315171830,1708900246622,-500.0,0.00019726,2]
[315171832,1708900246631,-500.72533949,0.00019726,2]
[315171834,1708900246641,-500.17034226,0.00019726,2]
[315171836,1708900246651,-232.63178787,0.00019726,2]
[315171838,1708900246660,-500.0,0.00019726,2]
[315171841,1708900246674,-649.34628108,0.00019726,2]
[315171843,1708900246683,-183.66690756,0.00019726,2]
[315171845,1708900246692,-500.0,0.00019726,2]
[315171847,1708900246700,-405.33060812,0.00019726,2]
[315171849,1708900246709,-500.0,0.00019726,2]
[315171851,1708900246718,-500.0,0.00019726,2]
[315171853,1708900246727,-500.0,0.00019726,2]
[315171855,1708900246737,-500.0,0.00019726,2]
[315171857,1708900246746,-500.0,0.00019726,2]
[315171859,1708900246755,-500.0,0.00019726,2]
[315171861,1708900246763,-439.43556303,0.00019726,2]
[315171863,1708900246773,-500.0,0.00019726,2]
[315171865,1708900246782,-500.0,0.00019726,2]
[315171867,1708900246790,-1805.57,0.00019726,2]
[315171869,1708900246799,-500.76231517,0.00019726,2]
[315171871,1708900246808,-500.0,0.00019726,2]
[315171873,1708900246817,-501.38504518,0.00019726,2]
[315171875,1708900246826,-500.0,0.00019726,2]
[315171877,1708900246835,-622.45384115,0.00019726,2]
[315171879,1708900246844,-500.0,0.00019726,2]
[315171881,1708900246853,-500.0,0.00019726,2]
[315171883,1708900246862,-500.0,0.00019726,2]
[315171885,1708900246871,-500.0,0.00019726,2]
[315171887,1708900246880,-500.0,0.00019726,2]
[315171889,1708900246889,-500.0,0.00019726,2]
[315171891,1708900246898,-500.0,0.00019726,2]
[315171893,1708900246906,-583.56,0.00019726,2]
[315171895,1708900246916,-500.0,0.00019726,2]
[315171897,1708900246925,-500.0,0.00019726,2]
[315171899,1708900246934,-500.0,0.00019726,2]
[315171901,1708900246943,-461.91857178,0.00019726,2]
[315171903,1708900246952,-500.0,0.00019726,2]
[315171905,1708900246961,-500.0,0.00019726,2]
[315171907,1708900246970,-500.0,0.00019726,2]
[315171909,1708900246979,-500.0,0.00019726,2]
[315171911,1708900246988,-500.0,0.00019726,2]
[315171913,1708900246997,-500.0,0.00019726,2]
[315171915,1708900247006,-500.0,0.00019726,2]
[315171917,1708900247015,-500.0,0.00019726,2]
[315171919,1708900247024,-500.0,0.00019726,2]
[315171921,1708900247033,-500.0,0.00019726,2]
[315171923,1708900247042,-500.0,0.00019726,2]
[315171925,1708900247051,-501.3354814,0.00019726,2]
[315171927,1708900247059,-2959.44,0.00019726,2]
[315171929,1708900247068,-500.0,0.00019726,2]
[315171931,1708900247077,-500.0,0.00019726,2]
[315171933,1708900247086,-1340.52,0.00019726,2]
[315171935,1708900247096,-500.0,0.00019726,2]
[315171937,1708900247104,-500.0,0.00019726,2]
[315171939,1708900247113,-582.12796174,0.00019726,2]
[315171941,1708900247122,-1206.28,0.00019726,2]
[315171943,1708900247131,-500.0,0.00019726,2]
[315171945,1708900247140,-500.0,0.00019726,2]
[315171947,1708900247149,-345.59939046,0.00019726,2]
[315171949,1708900247158,-500.0,0.00019726,2]
[315171951,1708900247167,-151.0,0.00019726,2]
[315171953,1708900247177,-500.0,0.00019726,2]
[315171955,1708900247185,-500.0,0.00019726,2]
[315171957,1708900247194,-602.69,0.00019726,2]
[315171959,1708900247204,-645.36,0.00019726,2]
[315171961,1708900247213,-500.0,0.00019726,2]
[315171963,1708900247222,-500.0,0.00019726,2]
[315171965,1708900247231,-500.0,0.00019726,2]
[315171967,1708900247240,-500.0,0.00019726,2]
[315171969,1708900247249,-500.0,0.00019726,2]
[315171971,1708900247258,-1316.89,0.00019726,2]
[315171973,1708900247266,-500.0,0.00019726,2]
[315171975,1708900247276,-500.0,0.00019726,2]
[315171977,1708900247284,-500.0,0.00019726,2]
[315171979,1708900247293,-634.56249942,0.00019726,2]
[315171981,1708900247302,-500.0,0.00019726,2]
[315171983,1708900247311,-500.0,0.00019726,2]
[315171985,1708900247321,-1000.0,0.00019726,2]
[315171987,1708900247331,-500.0,0.00019726,2]
[315171989,1708900247341,-500.0,0.00019726,2]
[315171991,1708900247349,-500.0,0.00019726,2]
[315171993,1708900247358,-521.6383826,0.00019726,2]
[315171995,1708900247368,-500.0,0.00019726,2]
[315171997,1708900247377,-500.0,0.00019726,2]
[315171999,1708900247386,-500.0,0.00019726,2]
[315172001,1708900247395,-500.0,0.00019726,2]
[315172003,1708900247405,-500.0,0.00019726,2]
[315172005,1708900247414,-500.0,0.00019726,2]
[315172007,1708900247423,-500.0,0.00019726,2]
[315172009,1708900247432,-2007.98,0.00019726,2]
[315172011,1708900247443,-500.0,0.00019726,2]
[315172013,1708900247452,-500.0,0.00019726,2]
[315172015,1708900247460,-500.0,0.00019726,2]
[315172017,1708900247469,-500.0,0.00019726,2]
[315172019,1708900247478,-500.0,0.00019726,2]
[315172021,1708900247488,-510.22306871,0.00019726,2]
[315172023,1708900247498,-500.0,0.00019726,2]
[315172025,1708900247507,-592.55105003,0.00019726,2]
[315172027,1708900247516,-501.27644702,0.00019726,2]
[315172029,1708900247525,-1570.5,0.00019726,2]
[315172031,1708900247534,-614.95785219,0.00019726,2]
[315172033,1708900247544,-500.0,0.00019726,2]
[315172035,1708900247553,-500.0,0.00019726,2]
[315172037,1708900247561,-500.0,0.00019726,2]
[315172039,1708900247570,-500.0,0.00019726,2]
[315172041,1708900247579,-500.0,0.00019726,2]
[315172043,1708900247588,-500.0,0.00019726,2]
[315172045,1708900247597,-500.0,0.00019726,2]
[315172047,1708900247605,-500.0,0.00019726,2]
[315172049,1708900247615,-500.0,0.00019726,2]
[315172051,1708900247624,-500.0,0.00019726,2]
[315172053,1708900247633,-500.0,0.00019726,2]
[315172055,1708900247642,-500.0,0.00019726,2]
[315172057,1708900247650,-500.0,0.00019726,2]
[315172059,1708900247660,-500.0,0.00019726,2]
[315172061,1708900247669,-500.0,0.00019726,2]
[315172063,1708900247677,-500.0,0.00019726,2]
[315172065,1708900247686,-500.0,0.00019726,2]
[315172067,1708900247695,-500.0,0.00019726,2]
[315172069,1708900247704,-500.0,0.00019726,2]
[315172071,1708900247713,-831.59,0.00019726,2]
[315172073,1708900247721,-500.0,0.00019726,2]
[315172074,1708900247731,-1410.55,0.00019726,2]
[315172076,1708900247739,-500.0,0.00019726,2]
[315172078,1708900247749,-500.0,0.00019726,2]
[315172080,1708900247757,-500.0,0.00019726,2]
[315172082,1708900247767,-500.0,0.00019726,2]
[315172084,1708900247775,-500.0,0.00019726,2]
[315172086,1708900247784,-500.0,0.00019726,2]
[315172088,1708900247793,-733.08,0.00019726,2]
[315172090,1708900247803,-500.0,0.00019726,2]
[315172092,1708900247812,-500.0,0.00019726,2]
[315172094,1708900247822,-500.0,0.00019726,2]
[315172096,1708900247831,-1690.29,0.00019726,2]
[315172098,1708900247840,-779.2,0.00019726,2]
[315172100,1708900247850,-500.0,0.00019726,2]
[315172102,1708900247859,-616.61,0.00019726,2]
[315172104,1708900247867,-500.0,0.00019726,2]
[315172106,1708900247876,-500.0,0.00019726,2]
[315172108,1708900247885,-500.0,0.00019726,2]
[315172110,1708900247894,-370.93073081,0.00019726,2]
[315172112,1708900247903,-500.0,0.00019726,2]
[315172114,1708900247912,-500.0,0.00019726,2]
[315172116,1708900247921,-502.10062869,0.00019726,2]
[315172118,1708900247930,-2460.03,0.00019726,2]
[315172120,1708900247938,-500.0,0.00019726,2]
[315172122,1708900247947,-500.0,0.00019726,2]
[315172124,1708900247956,-500.0,0.00019726,2]
[315172126,1708900247965,-500.0,0.00019726,2]
[315172128,1708900247973,-1782.88,0.00019726,2]
[315172130,1708900247982,-611.24857281,0.00019726,2]
[315172132,1708900247991,-500.0,0.00019726,2]
[315172134,1708900248000,-10756.65,0.00019726,2]
[315172136,1708900248008,-500.0,0.00019726,2]
[315172138,1708900248017,-500.0,0.00019726,2]
[315172140,1708900248026,-500.0,0.00019726,2]
[315172142,1708900248035,-500.0,0.00019726,2]
[315172143,1708900248044,-2490.46,0.00019726,2]
[315172145,1708900248053,-500.0,0.00019726,2]
[315172147,1708900248062,-3832.41,0.00019726,2]
[315172149,1708900248072,-500.0,0.00019726,2]
[315172151,1708900248080,-500.0,0.00019726,2]
[315172153,1708900248090,-500.0,0.00019726,2]
[315172155,1708900248100,-500.0,0.00019726,2]
[315172157,1708900248110,-500.0,0.00019726,2]
[315172159,1708900248119,-500.0,0.00019726,2]
[315172161,1708900248128,-500.0,0.00019726,2]
[315172163,1708900248137,-500.0,0.00019726,2]
[315172165,1708900248146,-1000.0,0.00019726,2]
[315172167,1708900248155,-500.0,0.00019726,2]
[315172169,1708900248164,-19742.94,0.00019726,2]
[315172171,1708900248174,-500.0,0.00019726,2]
[315172173,1708900248184,-500.0,0.00019726,2]
[315172175,1708900248194,-500.0,0.00019726,2]
[315172177,1708900248204,-1860.4,0.00019726,2]
[315172179,1708900248213,-513.27120478,0.00019726,2]
[315172181,1708900248222,-500.0,0.00019726,2]
[315172183,1708900248232,-1962.71,0.00019726,2]
[315172185,1708900248241,-500.0,0.00019726,2]
[315172187,1708900248252,-500.0,0.00019726,2]
[315172189,1708900248261,-500.0,0.00019726,2]